[Event "Early-Titled-Tuesday-Blitz-September-12-2023"]
[Site "Chess.com"]
[Date "2023.09.12"]
[Round "8"]
[White "Diaschess88"]
[Black "seopie"]
[Result "1-0"]
[WhiteElo "2693"]
[BlackElo "2826"]
[TimeControl "180+1"]
[EndTime "9:30:25 PDT"]
[Termination "Diaschess88 won by resignation"]

1. e4 {[%clk 0:03:00.9]} 1... e5 {[%clk 0:03:00]} 2. Nf3 {[%clk 0:03:00.5]} 2...
Nc6 {[%clk 0:03:00.3]} 3. Bb5 {[%clk 0:03:01.1]} 3... Nf6 {[%clk 0:03:00.9]} 4.
O-O {[%clk 0:03:00.9]} 4... Nxe4 {[%clk 0:03:00.9]} 5. Re1 {[%clk 0:03:01.3]}
5... Nd6 {[%clk 0:03:01.2]} 6. Nxe5 {[%clk 0:03:01.8]} 6... Be7 {[%clk
0:03:01.5]} 7. Bf1 {[%clk 0:03:02.2]} 7... O-O {[%clk 0:03:01]} 8. d4 {[%clk
0:03:02.5]} 8... Nf5 {[%clk 0:03:01.2]} 9. c3 {[%clk 0:03:02.4]} 9... Nxe5
{[%clk 0:03:01]} 10. Rxe5 {[%clk 0:03:03.3]} 10... d6 {[%clk 0:02:59.1]} 11. Re1
{[%clk 0:03:03.1]} 11... d5 {[%clk 0:02:57.4]} 12. Bf4 {[%clk 0:03:03.4]} 12...
Bd6 {[%clk 0:02:55.7]} 13. Bxd6 {[%clk 0:03:03.3]} 13... Nxd6 {[%clk 0:02:56.6]}
14. Bd3 {[%clk 0:03:00.1]} 14... c6 {[%clk 0:02:55.8]} 15. Nd2 {[%clk
0:02:59.8]} 15... Bf5 {[%clk 0:02:53.3]} 16. Bxf5 {[%clk 0:02:59.1]} 16... Nxf5
{[%clk 0:02:53.7]} 17. Nf3 {[%clk 0:02:57.9]} 17... Nd6 {[%clk 0:02:54]} 18. Ne5
{[%clk 0:02:55.2]} 18... Qc7 {[%clk 0:02:53.1]} 19. Qg4 {[%clk 0:02:48.6]} 19...
Rfe8 {[%clk 0:02:47]} 20. h4 {[%clk 0:02:46.3]} 20... Re6 {[%clk 0:02:38.9]} 21.
Nd3 {[%clk 0:02:38.9]} 21... Rae8 {[%clk 0:02:37.4]} 22. Rxe6 {[%clk 0:02:29.2]}
22... Rxe6 {[%clk 0:02:37.2]} 23. Re1 {[%clk 0:02:29.9]} 23... Rxe1+ {[%clk
0:02:37]} 24. Nxe1 {[%clk 0:02:30.8]} 24... Qe7 {[%clk 0:02:36.3]} 25. Nd3
{[%clk 0:02:27.6]} 25... g6 {[%clk 0:02:36.2]} 26. Kf1 {[%clk 0:02:22.9]} 26...
Ne4 {[%clk 0:02:34.3]} 27. g3 {[%clk 0:02:08.7]} 27... Kg7 {[%clk 0:02:31.2]}
28. Kg2 {[%clk 0:02:06.6]} 28... h5 {[%clk 0:02:29]} 29. Qf4 {[%clk 0:02:06.8]}
29... Nd6 {[%clk 0:02:20.4]} 30. Ne5 {[%clk 0:02:03]} 30... f6 {[%clk
0:02:16.6]} 31. Nd3 {[%clk 0:02:01.2]} 31... Nf5 {[%clk 0:02:12.5]} 32. Nc5
{[%clk 0:01:53.4]} 32... b6 {[%clk 0:02:12.1]} 33. Na6 {[%clk 0:01:53.2]} 33...
Qe2 {[%clk 0:02:01.2]} 34. Qc7+ {[%clk 0:01:51.9]} 34... Kh6 {[%clk 0:02:01.3]}
35. Qf4+ {[%clk 0:01:52]} 35... Kh7 {[%clk 0:01:57.3]} 36. Qc7+ {[%clk
0:01:48.6]} 36... Kg8 {[%clk 0:01:45.9]} 37. Qb8+ {[%clk 0:01:44.3]} 37... Kg7
{[%clk 0:01:45.7]} 38. Qc7+ {[%clk 0:01:41.4]} 38... Kh6 {[%clk 0:01:31.3]} 39.
Qf4+ {[%clk 0:01:41.5]} 39... Kh7 {[%clk 0:01:18]} 40. Nb8 {[%clk 0:01:40.8]}
40... Qxb2 {[%clk 0:01:07.4]} 41. Nd7 {[%clk 0:01:38.8]} 41... Qxc3 {[%clk
0:00:47.6]} 42. Nxf6+ {[%clk 0:01:38.3]} 42... Kg7 {[%clk 0:00:47.7]} 43. Nxh5+
{[%clk 0:01:29.3]} 43... gxh5 {[%clk 0:00:29.4]} 44. Qg5+ {[%clk 0:01:29.3]}
44... Kf8 {[%clk 0:00:25]} 45. Qxf5+ {[%clk 0:01:29.1]} 45... Ke7 {[%clk
0:00:25.4]} 46. Qg5+ {[%clk 0:00:52.1]} 46... Ke6 {[%clk 0:00:21.5]} 47. Qxh5
{[%clk 0:00:35.7]} 47... Qxd4 {[%clk 0:00:20.7]} 48. Qg6+ {[%clk 0:00:36.4]}
48... Qf6 {[%clk 0:00:20.5]} 49. Qxf6+ {[%clk 0:00:36.6]} 49... Kxf6 {[%clk
0:00:20.9]} 50. f4 {[%clk 0:00:37.3]} 50... d4 {[%clk 0:00:20.8]} 51. Kf3 {[%clk
0:00:37.5]} 51... c5 {[%clk 0:00:21.3]} 52. Ke4 {[%clk 0:00:33.3]} 52... b5
{[%clk 0:00:20.4]} 53. g4 {[%clk 0:00:33.8]} 53... b4 {[%clk 0:00:20.7]} 54. g5+
{[%clk 0:00:32.9]} 54... Kg7 {[%clk 0:00:19.9]} 55. h5 {[%clk 0:00:25.6]} 55...
a5 {[%clk 0:00:20.5]} 56. f5 {[%clk 0:00:20.5]} 56... a4 {[%clk 0:00:20.4]} 57.
f6+ {[%clk 0:00:21.2]} 57... Kf7 {[%clk 0:00:20.7]} 58. Kf5 {[%clk 0:00:14.9]}
58... d3 {[%clk 0:00:19.5]} 59. g6+ {[%clk 0:00:15.8]} 59... Kf8 {[%clk
0:00:18.7]} 60. f7 {[%clk 0:00:14]} 60... Ke7 {[%clk 0:00:18.9]} 61. h6 {[%clk
0:00:05.6]} 61... d2 {[%clk 0:00:19.2]} 62. h7 {[%clk 0:00:05.2]} 62... d1=Q
{[%clk 0:00:20.1]} 63. h8=Q {[%clk 0:00:05.2]} 63... Qf3+ {[%clk 0:00:20.2]} 64.
Kg5 {[%clk 0:00:04.6]} 64... Qg3+ {[%clk 0:00:20.4]} 65. Kf5 {[%clk 0:00:05]}
65... Qf3+ {[%clk 0:00:20.8]} 66. Kg5 {[%clk 0:00:05.5]} 66... Qg3+ {[%clk
0:00:21]} 67. Kh6 {[%clk 0:00:05.1]} 67... Qh4+ {[%clk 0:00:18.8]} 68. Kg7
{[%clk 0:00:05.6]} 68... Qf6+ {[%clk 0:00:19.1]} 69. Kh7 {[%clk 0:00:06]} 69...
Qh4+ {[%clk 0:00:15.5]} 70. Kg8 {[%clk 0:00:06.5]} 70... Qf4 {[%clk 0:00:15.6]}
71. Qg7 {[%clk 0:00:05.4]} 1-0

[Event "Early-Titled-Tuesday-Blitz-September-12-2023"]
[Site "Chess.com"]
[Date "2023.09.12"]
[Round "8"]
[White "Chessmissile07"]
[Black "The_Machine04"]
[Result "0-1"]
[WhiteElo "2864"]
[BlackElo "2683"]
[TimeControl "180+1"]
[EndTime "9:30:30 PDT"]
[Termination "The_Machine04 won on time"]

1. d4 {[%clk 0:03:00.9]} 1... d6 {[%clk 0:03:00.1]} 2. Nf3 {[%clk 0:03:00.2]}
2... Nf6 {[%clk 0:03:00.1]} 3. c4 {[%clk 0:02:58.2]} 3... g6 {[%clk 0:03:00.1]}
4. g3 {[%clk 0:02:56.4]} 4... Bg7 {[%clk 0:02:59.4]} 5. Nc3 {[%clk 0:02:56.8]}
5... Bf5 {[%clk 0:02:59]} 6. Bg2 {[%clk 0:02:56.4]} 6... Ne4 {[%clk 0:02:59.4]}
7. Qb3 {[%clk 0:02:51.8]} 7... Nxc3 {[%clk 0:02:59.1]} 8. Qxc3 {[%clk
0:02:52.7]} 8... Be4 {[%clk 0:02:58.9]} 9. O-O {[%clk 0:02:51.6]} 9... O-O
{[%clk 0:02:59.2]} 10. Be3 {[%clk 0:02:33.7]} 10... c5 {[%clk 0:02:57.9]} 11.
Qd2 {[%clk 0:02:33.2]} 11... b6 {[%clk 0:02:56.2]} 12. d5 {[%clk 0:02:28.9]}
12... Nd7 {[%clk 0:02:52.6]} 13. Bh6 {[%clk 0:02:20.5]} 13... Nf6 {[%clk
0:02:43.6]} 14. Bxg7 {[%clk 0:02:20.2]} 14... Kxg7 {[%clk 0:02:44.2]} 15. a4
{[%clk 0:02:10.2]} 15... a6 {[%clk 0:02:44.1]} 16. b4 {[%clk 0:02:04.1]} 16...
a5 {[%clk 0:02:31.9]} 17. b5 {[%clk 0:01:56.8]} 17... Qd7 {[%clk 0:02:30.4]} 18.
Qc3 {[%clk 0:01:54.3]} 18... Kg8 {[%clk 0:02:28.4]} 19. Nd2 {[%clk 0:01:54.3]}
19... Bxg2 {[%clk 0:02:28.1]} 20. Kxg2 {[%clk 0:01:55.2]} 20... Qf5 {[%clk
0:02:23.8]} 21. Rae1 {[%clk 0:01:48.1]} 21... Ne4 {[%clk 0:02:21.6]} 22. Nxe4
{[%clk 0:01:48.3]} 22... Qxe4+ {[%clk 0:02:22.5]} 23. f3 {[%clk 0:01:48.9]}
23... Qe5 {[%clk 0:02:15.1]} 24. Qxe5 {[%clk 0:01:44.4]} 24... dxe5 {[%clk
0:02:16]} 25. e4 {[%clk 0:01:39.9]} 25... Rad8 {[%clk 0:02:15.9]} 26. f4 {[%clk
0:01:38.5]} 26... f6 {[%clk 0:02:16.2]} 27. Re2 {[%clk 0:01:31.1]} 27... Kg7
{[%clk 0:02:16.3]} 28. Ref2 {[%clk 0:01:31.3]} 28... Kg8 {[%clk 0:02:15]} 29.
Rh1 {[%clk 0:01:16]} 29... Rf7 {[%clk 0:02:09.7]} 30. h4 {[%clk 0:01:00.4]}
30... h5 {[%clk 0:02:03.1]} 31. f5 {[%clk 0:01:00.4]} 31... Kh7 {[%clk
0:02:01.6]} 32. fxg6+ {[%clk 0:00:57.5]} 32... Kxg6 {[%clk 0:02:02.5]} 33. Kh3
{[%clk 0:00:56.8]} 33... Kh6 {[%clk 0:01:55.2]} 34. Rg1 {[%clk 0:00:54.8]} 34...
Rg7 {[%clk 0:01:50.2]} 35. g4 {[%clk 0:00:54.7]} 35... hxg4+ {[%clk 0:01:40.7]}
36. Rxg4 {[%clk 0:00:55.6]} 36... Rxg4 {[%clk 0:01:38.1]} 37. Kxg4 {[%clk
0:00:56.5]} 37... Kg6 {[%clk 0:01:38.7]} 38. h5+ {[%clk 0:00:51]} 38... Kf7
{[%clk 0:01:38.1]} 39. Rg2 {[%clk 0:00:17.3]} 39... Rg8+ {[%clk 0:01:37.8]} 40.
Kh3 {[%clk 0:00:17.5]} 40... Rh8 {[%clk 0:01:29.4]} 41. Kh4 {[%clk 0:00:17.8]}
41... Rh6 {[%clk 0:01:27.7]} 42. Rg3 {[%clk 0:00:16.7]} 42... Rh8 {[%clk
0:01:26.4]} 43. Rg6 {[%clk 0:00:16.5]} 43... Rh7 {[%clk 0:01:24.8]} 44. Rg2
{[%clk 0:00:15.7]} 44... Rh8 {[%clk 0:01:25.2]} 45. Rg1 {[%clk 0:00:15.3]} 45...
Rh7 {[%clk 0:01:13.5]} 46. Rg3 {[%clk 0:00:14.4]} 46... Rh8 {[%clk 0:01:13.6]}
47. Kg4 {[%clk 0:00:14.8]} 47... Rg8+ {[%clk 0:01:12.3]} 48. Kf3 {[%clk
0:00:15.1]} 48... Rh8 {[%clk 0:01:10.7]} 49. Rh3 {[%clk 0:00:15.5]} 49... Rg8
{[%clk 0:01:05]} 50. Rh1 {[%clk 0:00:13.3]} 50... Rh8 {[%clk 0:01:03.4]} 51. Kg4
{[%clk 0:00:10.5]} 51... Rg8+ {[%clk 0:01:03.8]} 52. Kf3 {[%clk 0:00:11.1]}
52... Rh8 {[%clk 0:01:04.1]} 53. Rh2 {[%clk 0:00:09.8]} 53... Rg8 {[%clk
0:01:04]} 54. Rg2 {[%clk 0:00:09.1]} 54... Rh8 {[%clk 0:01:02.8]} 55. Kg4 {[%clk
0:00:09.7]} 55... Rg8+ {[%clk 0:01:03.3]} 56. Kh3 {[%clk 0:00:10.1]} 56... Rh8
{[%clk 0:01:03.9]} 57. Rd2 {[%clk 0:00:10.7]} 57... Rxh5+ {[%clk 0:01:03.2]} 58.
Kg4 {[%clk 0:00:10.5]} 58... Rh1 {[%clk 0:00:51.6]} 59. d6 {[%clk 0:00:10.5]}
59... exd6 {[%clk 0:00:35.2]} 60. Rxd6 {[%clk 0:00:11.4]} 60... Rf1 {[%clk
0:00:35]} 61. Rxb6 {[%clk 0:00:10.8]} 61... Rf4+ {[%clk 0:00:35]} 62. Kg3 {[%clk
0:00:11]} 62... Rxe4 {[%clk 0:00:35.6]} 63. Ra6 {[%clk 0:00:10.4]} 63... Rxc4
{[%clk 0:00:35.2]} 64. Rxa5 {[%clk 0:00:11]} 64... Rb4 {[%clk 0:00:35.6]} 65.
Ra6 {[%clk 0:00:07.1]} 65... c4 {[%clk 0:00:34.7]} 66. Kf3 {[%clk 0:00:06.6]}
66... c3 {[%clk 0:00:33.3]} 67. Ke2 {[%clk 0:00:06.7]} 67... e4 {[%clk
0:00:30.4]} 68. b6 {[%clk 0:00:03.8]} 68... f5 {[%clk 0:00:27.2]} 69. a5 {[%clk
0:00:02]} 69... f4 {[%clk 0:00:27.4]} 70. Ra7+ {[%clk 0:00:01.9]} 70... Ke6
{[%clk 0:00:26.8]} 71. b7 {[%clk 0:00:02.8]} 71... Rb2+ {[%clk 0:00:25.8]} 72.
Kd1 {[%clk 0:00:02.8]} 72... e3 {[%clk 0:00:20.8]} 73. Ra6+ {[%clk 0:00:03.1]}
73... Kd5 {[%clk 0:00:12.8]} 74. Rb6 {[%clk 0:00:04]} 74... Rd2+ {[%clk
0:00:12.8]} 75. Ke1 {[%clk 0:00:02.5]} 75... c2 {[%clk 0:00:11.9]} 76. Rb5+
{[%clk 0:00:03]} 76... Kc4 {[%clk 0:00:09.5]} 77. Rb4+ {[%clk 0:00:03.1]} 77...
Kd5 {[%clk 0:00:06.6]} 78. Rb5+ {[%clk 0:00:03.4]} 78... Kc6 {[%clk 0:00:06]}
79. Rb6+ {[%clk 0:00:03.6]} 79... Kd7 {[%clk 0:00:05.8]} 0-1

[Event "Early-Titled-Tuesday-Blitz-September-12-2023"]
[Site "Chess.com"]
[Date "2023.09.12"]
[Round "8"]
[White "emeli_chess"]
[Black "MateusViageiro"]
[Result "1-0"]
[WhiteElo "2355"]
[BlackElo "2134"]
[TimeControl "180+1"]
[EndTime "9:30:37 PDT"]
[Termination "emeli_chess won on time"]

1. d4 {[%clk 0:03:00.9]} 1... Nf6 {[%clk 0:02:59.9]} 2. c4 {[%clk 0:03:01.3]}
2... e6 {[%clk 0:02:59.9]} 3. Nc3 {[%clk 0:03:01.7]} 3... Bb4 {[%clk 0:02:59]}
4. Qc2 {[%clk 0:03:02.1]} 4... c5 {[%clk 0:02:58.4]} 5. dxc5 {[%clk 0:03:02.1]}
5... Nc6 {[%clk 0:02:57.8]} 6. a3 {[%clk 0:03:01.6]} 6... Bxc5 {[%clk 0:02:58]}
7. Nf3 {[%clk 0:03:00.9]} 7... a5 {[%clk 0:02:57.2]} 8. b3 {[%clk 0:02:58.5]}
8... O-O {[%clk 0:02:55.4]} 9. e3 {[%clk 0:02:57.5]} 9... d5 {[%clk 0:02:49.4]}
10. cxd5 {[%clk 0:02:55.9]} 10... Nxd5 {[%clk 0:02:48.8]} 11. Nxd5 {[%clk
0:02:53.9]} 11... Qxd5 {[%clk 0:02:48.1]} 12. Bc4 {[%clk 0:02:53.6]} 12... Qh5
{[%clk 0:02:47.3]} 13. O-O {[%clk 0:02:52.3]} 13... Bd6 {[%clk 0:02:46.9]} 14.
Bb2 {[%clk 0:02:50.5]} 14... b5 {[%clk 0:02:38.9]} 15. Qe4 {[%clk 0:02:29.5]}
15... Bb7 {[%clk 0:02:35.1]} 16. Bd3 {[%clk 0:02:28.9]} 16... Ne5 {[%clk
0:02:17.9]} 17. Qxh7+ {[%clk 0:02:13.4]} 17... Qxh7 {[%clk 0:02:17.5]} 18. Bxh7+
{[%clk 0:02:12.8]} 18... Kxh7 {[%clk 0:02:18.4]} 19. Nxe5 {[%clk 0:02:07.8]}
19... Rac8 {[%clk 0:02:13.9]} 20. Rac1 {[%clk 0:02:06.6]} 20... f6 {[%clk
0:02:10.1]} 21. Nf3 {[%clk 0:02:03]} 21... Bd5 {[%clk 0:02:05.9]} 22. Nd4 {[%clk
0:01:38]} 22... Be5 {[%clk 0:01:56.2]} 23. b4 {[%clk 0:01:26.4]} 23... Bc4
{[%clk 0:01:49.6]} 24. Rfd1 {[%clk 0:01:23]} 24... axb4 {[%clk 0:01:48.9]} 25.
axb4 {[%clk 0:01:22.6]} 25... Ra8 {[%clk 0:01:47.1]} 26. Ra1 {[%clk 0:01:21.1]}
26... Rxa1 {[%clk 0:01:39.8]} 27. Rxa1 {[%clk 0:01:20.1]} 27... Rc8 {[%clk
0:01:36.5]} 28. f4 {[%clk 0:01:18.3]} 28... Bd6 {[%clk 0:01:33.1]} 29. Bc3
{[%clk 0:01:08.3]} 29... Bd3 {[%clk 0:01:24.4]} 30. Ra3 {[%clk 0:01:07.8]} 30...
Bc4 {[%clk 0:01:17.4]} 31. Kf2 {[%clk 0:01:06]} 31... Kg6 {[%clk 0:01:14.4]} 32.
h4 {[%clk 0:00:58.6]} 32... e5 {[%clk 0:01:14.2]} 33. f5+ {[%clk 0:00:47.1]}
33... Kh5 {[%clk 0:01:11.9]} 34. Nf3 {[%clk 0:00:47.1]} 34... Bd5 {[%clk
0:01:06.5]} 35. Bd2 {[%clk 0:00:40.3]} 35... Rc2 {[%clk 0:01:05]} 36. Rd3 {[%clk
0:00:40]} 36... Bxf3 {[%clk 0:00:57.4]} 37. Kxf3 {[%clk 0:00:35.1]} 37... Bf8
{[%clk 0:00:50.5]} 38. Rd8 {[%clk 0:00:32.8]} 38... Kxh4 {[%clk 0:00:46.2]} 39.
Be1+ {[%clk 0:00:30.2]} 39... Kg5 {[%clk 0:00:44.4]} 40. Rxf8 {[%clk 0:00:30.5]}
40... Kxf5 {[%clk 0:00:44.3]} 41. Rb8 {[%clk 0:00:28.9]} 41... e4+ {[%clk
0:00:42]} 42. Kg3 {[%clk 0:00:28.7]} 42... Rc1 {[%clk 0:00:40.7]} 43. Bf2 {[%clk
0:00:27.7]} 43... Kg6 {[%clk 0:00:37.4]} 44. Rxb5 {[%clk 0:00:26.9]} 44... Rc4
{[%clk 0:00:37.9]} 45. Rb8 {[%clk 0:00:23.9]} 45... f5 {[%clk 0:00:37.7]} 46. b5
{[%clk 0:00:23.1]} 46... Rc5 {[%clk 0:00:36.8]} 47. b6 {[%clk 0:00:23.1]} 47...
Rb5 {[%clk 0:00:36]} 48. Be1 {[%clk 0:00:18.2]} 48... Kh5 {[%clk 0:00:34.3]} 49.
Bc3 {[%clk 0:00:17.7]} 49... g5 {[%clk 0:00:33.9]} 50. Bd4 {[%clk 0:00:17.6]}
50... Rb3 {[%clk 0:00:32.3]} 51. Rh8+ {[%clk 0:00:16.8]} 51... Kg6 {[%clk
0:00:31.8]} 52. Rc8 {[%clk 0:00:15.6]} 52... f4+ {[%clk 0:00:31.1]} 53. Kf2
{[%clk 0:00:15]} 53... Kf5 {[%clk 0:00:30.4]} 54. Rc5+ {[%clk 0:00:14.3]} 54...
Kg4 {[%clk 0:00:29.6]} 55. Re5 {[%clk 0:00:14.2]} 55... fxe3+ {[%clk 0:00:25.3]}
56. Bxe3 {[%clk 0:00:13.7]} 56... Rb2+ {[%clk 0:00:25.3]} 57. Kf1 {[%clk
0:00:13.7]} 57... Rb1+ {[%clk 0:00:25]} 58. Ke2 {[%clk 0:00:13.7]} 58... Rb2+
{[%clk 0:00:24.9]} 59. Bd2 {[%clk 0:00:13.4]} 59... Kg3 {[%clk 0:00:22.7]} 60.
Rxg5+ {[%clk 0:00:13.3]} 60... Kh2 {[%clk 0:00:21.2]} 61. Rg6 {[%clk 0:00:13.3]}
61... Kg1 {[%clk 0:00:19.9]} 62. Ke3 {[%clk 0:00:13.4]} 62... Kf1 {[%clk
0:00:16.9]} 63. Bc3 {[%clk 0:00:13.2]} 63... Rb3 {[%clk 0:00:16.6]} 64. Kd4
{[%clk 0:00:13.4]} 64... e3 {[%clk 0:00:16.1]} 65. Re6 {[%clk 0:00:12.6]} 65...
Kxg2 {[%clk 0:00:15.1]} 66. Rxe3 {[%clk 0:00:11.9]} 66... Rxb6 {[%clk
0:00:13.4]} 67. Ke4 {[%clk 0:00:12.2]} 67... Re6+ {[%clk 0:00:12.6]} 68. Be5
{[%clk 0:00:12.4]} 68... Kf2 {[%clk 0:00:12.6]} 69. Rf3+ {[%clk 0:00:12]} 69...
Ke2 {[%clk 0:00:12.5]} 70. Rh3 {[%clk 0:00:12]} 70... Kf2 {[%clk 0:00:11.1]} 71.
Rh2+ {[%clk 0:00:12]} 71... Kg1 {[%clk 0:00:07.3]} 72. Ra2 {[%clk 0:00:11.7]}
72... Re8 {[%clk 0:00:06.7]} 73. Rb2 {[%clk 0:00:09.7]} 73... Re7 {[%clk
0:00:05.4]} 74. Kf4 {[%clk 0:00:09.3]} 74... Rf7+ {[%clk 0:00:05.4]} 75. Ke3
{[%clk 0:00:09.4]} 75... Kf1 {[%clk 0:00:03.7]} 76. Bf4 {[%clk 0:00:09.1]} 76...
Re7+ {[%clk 0:00:02.4]} 77. Kf3 {[%clk 0:00:09.5]} 77... Re1 {[%clk 0:00:02.1]}
78. Be3 {[%clk 0:00:08.8]} 1-0

[Event "Early-Titled-Tuesday-Blitz-September-12-2023"]
[Site "Chess.com"]
[Date "2023.09.12"]
[Round "8"]
[White "AndreiITrifan"]
[Black "hongnhung1234"]
[Result "1-0"]
[WhiteElo "2632"]
[BlackElo "2508"]
[TimeControl "180+1"]
[EndTime "9:30:39 PDT"]
[Termination "AndreiITrifan won by checkmate"]

1. Nf3 {[%clk 0:03:00.2]} 1... f5 {[%clk 0:02:57.7]} 2. d4 {[%clk 0:02:58.7]}
2... Nf6 {[%clk 0:02:57.7]} 3. c4 {[%clk 0:02:58.1]} 3... g6 {[%clk 0:02:57.8]}
4. Nc3 {[%clk 0:02:57.7]} 4... Bg7 {[%clk 0:02:58.3]} 5. g3 {[%clk 0:02:56.9]}
5... O-O {[%clk 0:02:58.5]} 6. Bg2 {[%clk 0:02:56.8]} 6... d6 {[%clk 0:02:58.3]}
7. d5 {[%clk 0:02:56.2]} 7... Qe8 {[%clk 0:02:55.6]} 8. O-O {[%clk 0:02:48]}
8... a5 {[%clk 0:02:55.2]} 9. Nd4 {[%clk 0:02:40]} 9... Na6 {[%clk 0:02:54.8]}
10. h3 {[%clk 0:02:34.4]} 10... Bd7 {[%clk 0:02:48.2]} 11. Be3 {[%clk
0:02:25.2]} 11... Nc5 {[%clk 0:02:45.2]} 12. Rc1 {[%clk 0:02:24.4]} 12... c6
{[%clk 0:02:43.9]} 13. Qc2 {[%clk 0:02:18]} 13... Rc8 {[%clk 0:02:38.4]} 14.
Rfd1 {[%clk 0:02:16.3]} 14... cxd5 {[%clk 0:02:30.4]} 15. Nxd5 {[%clk
0:02:15.3]} 15... Nxd5 {[%clk 0:02:23.8]} 16. Bxd5+ {[%clk 0:02:16.2]} 16... Kh8
{[%clk 0:02:14.2]} 17. Nb3 {[%clk 0:02:09.4]} 17... b6 {[%clk 0:02:08]} 18. Bg2
{[%clk 0:02:05.5]} 18... Ba4 {[%clk 0:01:53.9]} 19. Bd4 {[%clk 0:01:52.8]} 19...
e5 {[%clk 0:01:50.8]} 20. Bc3 {[%clk 0:01:46.5]} 20... Qe7 {[%clk 0:01:44]} 21.
Bd5 {[%clk 0:01:38.5]} 21... f4 {[%clk 0:01:28.9]} 22. g4 {[%clk 0:01:35]} 22...
Qh4 {[%clk 0:01:23.6]} 23. Kg2 {[%clk 0:01:32.6]} 23... Rcd8 {[%clk 0:01:15.7]}
24. Rd2 {[%clk 0:01:21.1]} 24... f3+ {[%clk 0:00:43.5]} 25. exf3 {[%clk
0:00:59.1]} 25... Bh6 {[%clk 0:00:43.2]} 26. Re1 {[%clk 0:00:50.9]} 26... Bxd2
{[%clk 0:00:39.9]} 27. Qxd2 {[%clk 0:00:51.8]} 27... Bxb3 {[%clk 0:00:34.6]} 28.
axb3 {[%clk 0:00:20.6]} 28... Qf6 {[%clk 0:00:32.7]} 29. Qc2 {[%clk 0:00:18.3]}
29... Ne6 {[%clk 0:00:29.6]} 30. Bxe6 {[%clk 0:00:17.9]} 30... Qxe6 {[%clk
0:00:29.7]} 31. Qe4 {[%clk 0:00:18.3]} 31... Qf6 {[%clk 0:00:29.2]} 32. Rd1
{[%clk 0:00:18.4]} 32... Kg8 {[%clk 0:00:26.2]} 33. Qd5+ {[%clk 0:00:18]} 33...
Qf7 {[%clk 0:00:26.7]} 34. Qe4 {[%clk 0:00:17.7]} 34... Qf4 {[%clk 0:00:25]} 35.
Qd5+ {[%clk 0:00:17.6]} 35... Kg7 {[%clk 0:00:25.5]} 36. Rd3 {[%clk 0:00:17.1]}
36... Qf7 {[%clk 0:00:25]} 37. Qc6 {[%clk 0:00:16.3]} 37... Qf6 {[%clk
0:00:23.1]} 38. Qxb6 {[%clk 0:00:15.8]} 38... h5 {[%clk 0:00:19.4]} 39. c5
{[%clk 0:00:12.8]} 39... dxc5 {[%clk 0:00:16.8]} 40. Qc7+ {[%clk 0:00:11.8]}
40... Kg8 {[%clk 0:00:13.9]} 41. Bxe5 {[%clk 0:00:11.3]} 41... Qf7 {[%clk
0:00:09.3]} 42. Qxf7+ {[%clk 0:00:07.4]} 42... Kxf7 {[%clk 0:00:08.6]} 43. Rc3
{[%clk 0:00:08.1]} 43... Rc8 {[%clk 0:00:07.9]} 44. Bd6 {[%clk 0:00:08.5]} 44...
Rfd8 {[%clk 0:00:07.8]} 45. Bxc5 {[%clk 0:00:07.5]} 45... Rd5 {[%clk 0:00:08.1]}
46. b4 {[%clk 0:00:08]} 46... axb4 {[%clk 0:00:07.2]} 47. Bxb4 {[%clk
0:00:08.9]} 47... Rxc3 {[%clk 0:00:06.9]} 48. Bxc3 {[%clk 0:00:09.8]} 48... Rb5
{[%clk 0:00:05.1]} 49. h4 {[%clk 0:00:09.1]} 49... Ke6 {[%clk 0:00:04.5]} 50.
Kg3 {[%clk 0:00:09.4]} 50... Rb3 {[%clk 0:00:03.7]} 51. Kf4 {[%clk 0:00:09.3]}
51... Rb5 {[%clk 0:00:04]} 52. Bh8 {[%clk 0:00:07.2]} 52... Rd5 {[%clk 0:00:04]}
53. Bc3 {[%clk 0:00:07.3]} 53... Kd6 {[%clk 0:00:04]} 54. Kg3 {[%clk 0:00:06.8]}
54... Ke6 {[%clk 0:00:03.9]} 55. f4 {[%clk 0:00:07.1]} 55... Rb5 {[%clk
0:00:03.5]} 56. f3 {[%clk 0:00:07.2]} 56... Rd5 {[%clk 0:00:02.9]} 57. Kf2
{[%clk 0:00:07.5]} 57... Rb5 {[%clk 0:00:02.8]} 58. Ke3 {[%clk 0:00:08]} 58...
Rd5 {[%clk 0:00:02.7]} 59. Kf2 {[%clk 0:00:07.7]} 59... Kf7 {[%clk 0:00:03]} 60.
Kg3 {[%clk 0:00:08]} 60... Rd1 {[%clk 0:00:03.3]} 61. f5 {[%clk 0:00:07.8]}
61... gxf5 {[%clk 0:00:02.9]} 62. gxh5 {[%clk 0:00:07.2]} 62... Rd5 {[%clk
0:00:02.2]} 63. Kf4 {[%clk 0:00:07.5]} 63... Rb5 {[%clk 0:00:02.2]} 64. Kg5
{[%clk 0:00:05.5]} 64... Kg8 {[%clk 0:00:02.9]} 65. Kg6 {[%clk 0:00:05.1]} 65...
Rb6+ {[%clk 0:00:03]} 66. Bf6 {[%clk 0:00:05.6]} 66... Ra6 {[%clk 0:00:02.7]}
67. h6 {[%clk 0:00:05.8]} 67... Ra7 {[%clk 0:00:03.4]} 68. h5 {[%clk 0:00:05.5]}
68... f4 {[%clk 0:00:03.6]} 69. b4 {[%clk 0:00:05.7]} 69... Rg7+ {[%clk
0:00:03.7]} 70. Kf5 {[%clk 0:00:05.1]} 70... Rh7 {[%clk 0:00:04.2]} 71. Bg7
{[%clk 0:00:04.7]} 71... Kf7 {[%clk 0:00:03.2]} 72. b5 {[%clk 0:00:05]} 72...
Kg8 {[%clk 0:00:02.2]} 73. b6 {[%clk 0:00:05.3]} 73... Kf7 {[%clk 0:00:02.2]}
74. b7 {[%clk 0:00:05.6]} 74... Rxh6 {[%clk 0:00:01.6]} 75. Bxh6 {[%clk
0:00:04.8]} 75... Kg8 {[%clk 0:00:01.1]} 76. b8=Q+ {[%clk 0:00:04.9]} 76... Kh7
{[%clk 0:00:02]} 77. Qc7+ {[%clk 0:00:05.1]} 77... Kh8 {[%clk 0:00:01.9]} 78.
Qg7# {[%clk 0:00:05.3]} 1-0